[Event "Austrian Youth-ch U16 Boys 2024"]
[Site "Leibnitz"]
[Date "2024.03.28"]
[Round "7.5"]
[White "Guba, Viktor"]
[Black "Gruenwald, Simon"]
[Result "0-1"]
[ECO "B00"]
[WhiteElo "1892"]
[BlackElo "2117"]
[Annotator "RC"]
[PlyCount "90"]
[EventDate "2024.03.23"]
[EventType "swiss"]
[EventCountry "AUT"]
[SourceTitle "playchess.com"]
[Source "ChessBase"]
[SourceQuality "1"]
[TimeControl "5400+30"]

1. e4 {[%emt 0:00:05]} b6 {[%emt 0:00:00]} 2. d4 {[%emt 0:01:00]} Bb7 {[%emt 0:00:02]} 3. Bd3 {[%emt 0:00:58]} e6 {[%emt 0:00:38]} 4. Ne2 {[%emt 0:01:43]} Ne7 {[%emt 0:00:28]} 5. O-O {[%emt 0:01:20]} g6 {[%emt 0:03:04]} 6. Be3 {[%emt 0:02:13]} Bg7 {[%emt 0:00:26]} 7. c3 {[%emt 0:04:27]} h6 {[%emt 0:01:39]} 8. Nd2 {[%emt 0:01:28]} d6 {[%emt 0:00:57]} 9. b4 {[%emt 0:02:46]} a6 {[%emt 0:02:08]} 10. Nb3 {[%emt 0:01:59]} O-O {[%emt 0:01:48]} 11. Rb1 {[%emt 0:03:16]} f5 {[%emt 0:05:05]} 12. f3 {[%emt 0:00:28]} g5 {[%emt 0:02:16]} 13. a4 {[%emt 0:01:21]} f4 {[%emt 0:06:14]} 14. Bf2 {[%emt 0:01:51]} Qe8 {[%emt 0:07:04]} 15. a5 {[%emt 0:01:35]} b5 {[%emt 0:02:37]} 16. c4 {[%emt 0:00:22]} c6 {[%emt 0:02:34]} 17. cxb5 {[%emt 0:04:28]} cxb5 {[%emt 0:01:18]} 18. Rc1 {[%emt 0:00:05]} Nbc6 {[%emt 0:00:48]} 19. Qd2 {[%emt 0:06:22]} Rc8 {[%emt 0:03:20]} 20. Rfe1 {[%emt 0:02:58]} Qf7 {[%emt 0:05:14]} 21. Nc3 {[%emt 0:07:08]} Nxb4 {[%emt 0:09:51]} 22. Nxb5 {[%emt 0:00:06]} Nxd3 {[%emt 0:00:09]} 23. Nxd6 {[%emt 0:00:06]} Nxc1 {[%emt 0:00:06]} 24. Nxf7 {[%emt 0:02:19]} Nxb3 {[%emt 0:00:14]} 25. Qb4 {[%emt 0:00:04]} Kxf7 {[%emt 0:00:27]} 26. Qxb7 {[%emt 0:01:10]} Nxa5 {[%emt 0:02:43]} 27. Qxa6 {[%emt 0:00:06]} Nac6 {[%emt 0:03:08]} 28. e5 {[%emt 0:11:13]} Rfd8 {[%emt 0:03:57]} 29. Qa4 {[%emt 0:01:07]} Nd5 {[%emt 0:03:28]} 30. Rb1 {[%emt 0:06:13]} Nce7 {[%emt 0:00:48]} 31. Re1 {[%emt 0:01:32]} Rc7 {[%emt 0:01:01]} 32. g4 {[%emt 0:03:56]} Rdc8 {[%emt 0:00:50]} 33. Qd1 {[%emt 0:00:59]} Rc2 {[%emt 0:00:34]} 34. Qb1 {[%emt 0:01:09]} Bf8 {[%emt 0:01:36]} 35. h4 {[%emt 0:01:14]} Bg7 {[%emt 0:01:34]} 36. h5 {[%emt 0:02:09]} R8c7 {[%emt 0:05:48]} 37. Qb5 {[%emt 0:01:43]} Rd2 {[%emt 0:01:10]} 38. Qb1 {[%emt 0:00:45]} Rcc2 {[%emt 0:00:31]} 39. Rc1 {[%emt 0:00:50]} Rb2 {[%emt 0:00:26]} 40. Qh7 {[%emt 0:01:05]} Rxf2 {[%emt 0:00:14]} 41. Rc8 {[%emt 0:00:22]} Rg2+ {[%emt 0:00:11]} 42. Kh1 {[%emt 0:00:05]} Rh2+ {[%emt 0:00:02]} 43. Kg1 {[%emt 0:00:07]} Rbg2+ {[%emt 0:00:06]} 44. Kf1 {[%emt 0:00:03]} Ne3+ {[%emt 0:00:05]} 45. Ke1 {[%emt 0:00:03]} Re2# {[%emt 0:00:44]} 0-1

[Event "Austrian Youth-ch U16 Boys 2024"]
[Site "Leibnitz"]
[Date "2024.03.28"]
[Round "7.6"]
[White "Hellerschmid, Andreas"]
[Black "Standhartinger, Joachim"]
[Result "1/2-1/2"]
[ECO "C29"]
[WhiteElo "1827"]
[BlackElo "1930"]
[Annotator "RC"]
[PlyCount "99"]
[EventDate "2024.03.23"]
[EventType "swiss"]
[EventCountry "AUT"]
[SourceTitle "playchess.com"]
[Source "ChessBase"]
[SourceQuality "1"]
[TimeControl "5400+30"]

1. e4 {[%emt 0:00:02]} e5 {[%emt 0:01:20]} 2. Nc3 {[%emt 0:01:02]} Nf6 {[%emt 0:00:10]} 3. f4 {[%emt 0:00:36]} d5 {[%emt 0:00:45]} 4. fxe5 {[%emt 0:01:14]} Nxe4 {[%emt 0:00:14]} 5. Qf3 {[%emt 0:00:39]} f5 {[%emt 0:01:12]} 6. d3 {[%emt 0:00:30]} Nxc3 {[%emt 0:00:50]} 7. bxc3 {[%emt 0:00:29]} d4 {[%emt 0:00:37]} 8. Qg3 {[%emt 0:00:32]} Nc6 {[%emt 0:06:13]} 9. Be2 {[%emt 0:00:32]} g6 {[%emt 0:04:49]} 10. c4 {[%emt 0:06:39]} Bg7 {[%emt 0:09:30]} 11. Bf4 {[%emt 0:10:41]} Qe7 {[%emt 0:08:54]} 12. Nf3 {[%emt 0:01:24]} O-O {[%emt 0:02:44]} 13. h4 {[%emt 0:12:59]} Re8 {[%emt 0:05:50]} 14. O-O {[%emt 0:08:56]} Nxe5 {[%emt 0:05:30]} 15. Nxe5 {[%emt 0:01:31]} Bxe5 {[%emt 0:01:03]} 16. Rfe1 {[%emt 0:04:09]} Bxf4 {[%emt 0:09:40]} 17. Qxf4 {[%emt 0:00:09]} Qe3+ {[%emt 0:00:58]} 18. Qxe3 {[%emt 0:00:07]} Rxe3 {[%emt 0:00:07]} 19. Bf3 {[%emt 0:00:55]} f4 {[%emt 0:02:21]} 20. Rf1 {[%emt 0:05:22]} c5 {[%emt 0:19:11]} 21. Rab1 {[%emt 0:13:20]} Rb8 {[%emt 0:01:21]} 22. Bd5+ {[%emt 0:00:36]} Kg7 {[%emt 0:01:29]} 23. Rxf4 {[%emt 0:00:54]} Re2 {[%emt 0:01:29]} 24. Rf2 {[%emt 0:04:06]} Rxf2 {[%emt 0:01:24]} 25. Kxf2 {[%emt 0:00:06]} Bd7 {[%emt 0:02:53]} 26. Rxb7 {[%emt 0:03:18]} Rxb7 {[%emt 0:00:06]} 27. Bxb7 {[%emt 0:00:04]} Ba4 {[%emt 0:02:11]} 28. Ke2 {[%emt 0:00:11]} Bxc2 {[%emt 0:00:42]} 29. Bc6 {[%emt 0:00:14]} a5 {[%emt 0:00:50]} 30. Kd2 {[%emt 0:03:02]} Bb1 {[%emt 0:00:08]} 31. Ba4 {[%emt 0:00:34]} Kf6 {[%emt 0:00:26]} 32. Bd1 {[%emt 0:06:51]} Kf5 {[%emt 0:00:37]} 33. a4 {[%emt 0:04:03]} Kf4 {[%emt 0:01:35]} 34. g4 {[%emt 0:00:24]} Kg3 {[%emt 0:02:30]} 35. h5 {[%emt 0:00:10]} gxh5 {[%emt 0:00:16]} 36. gxh5 {[%emt 0:00:07]} h6 {[%emt 0:00:08]} 37. Be2 {[%emt 0:01:01]} Kf2 {[%emt 0:00:20]} 38. Bg4 {[%emt 0:01:04]} Ba2 {[%emt 0:04:18]} 39. Kc2 {[%emt 0:00:14]} Ke3 {[%emt 0:00:38]} 40. Bf5 {[%emt 0:00:23]} Ke2 {[%emt 0:01:02]} 41. Bg4+ {[%emt 0:04:26]} Ke3 {[%emt 0:00:37]} 42. Bd1 {[%emt 0:01:07]} Kf2 {[%emt 0:00:48]} 43. Kb2 {[%emt 0:01:55]} Ke1 {[%emt 0:00:15]} 44. Bg4 {[%emt 0:00:33]} Kd2 {[%emt 0:00:39]} 45. Kxa2 {[%emt 0:01:29]} Kxd3 {[%emt 0:00:50]} 46. Kb3 {[%emt 0:00:37]} Kd2 {[%emt 0:00:01]} 47. Bf5 {[%emt 0:01:35]} Kc1 {[%emt 0:00:49]} 48. Be4 {[%emt 0:01:10]} Kd2 {[%emt 0:00:35]} 49. Kb2 {[%emt 0:00:42]} Kd1 {[%emt 0:00:07]} 50. Kb3 {[%emt 0:02:46]} 1/2-1/2

[Event "Austrian Youth-ch U16 Boys 2024"]
[Site "Leibnitz"]
[Date "2024.03.28"]
[Round "7.8"]
[White "Nicolussi, Hieronymus"]
[Black "Martinovic, David"]
[Result "1/2-1/2"]
[ECO "C30"]
[WhiteElo "1861"]
[BlackElo "1893"]
[Annotator "NA RC"]
[PlyCount "160"]
[EventDate "2024.03.23"]
[EventType "swiss"]
[EventCountry "AUT"]
[SourceTitle "playchess.com"]
[Source "ChessBase"]
[SourceQuality "1"]
[TimeControl "5400+30"]

1. e4 {[%emt 0:00:05]} e5 {[%emt 0:00:08]} 2. Nc3 {[%emt 0:00:04]} Nc6 {[%emt 0:00:33]} 3. Bc4 {[%emt 0:00:12]} Nf6 {[%emt 0:00:48]} 4. d3 {[%emt 0:00:18]} Bc5 {[%emt 0:01:54]} 5. f4 {[%emt 0:01:09]} d6 {[%emt 0:03:10]} 6. Nf3 {[%emt 0:00:55]} a6 {[%emt 0:02:14]} 7. f5 {[%emt 0:03:07]} Na5 {[%emt 0:10:14]} 8. Bg5 $11 {[%emt 0:12:09]} Nxc4 {[%emt 0:05:04]} 9. dxc4 {[%emt 0:01:02]} c6 {[%emt 0:02:10]} 10. Qd3 {[%emt 0:04:49]} b5 {[%emt 0:08:54]} 11. cxb5 {[%emt 0:09:41]} axb5 {[%emt 0:00:31]} 12. Be3 {[%emt 0:01:08]} Qb6 {[%emt 0:18:35]} 13. Nd1 {[%emt 0:05:40]} b4 {[%emt 0:14:44]} 14. c4 {[%emt 0:19:15]} bxc3 {[%emt 0:04:28]} 15. Bxc5 {[%emt 0:01:11]} Qxc5 {[%emt 0:07:58]} 16. Nxc3 {[%emt 0:04:40]} Ba6 {[%emt 0:01:13]} 17. Qd2 {[%emt 0:02:20]} O-O {[%emt 0:03:23]} 18. Qf2 {[%emt 0:05:28]} Qb4 {[%emt 0:05:08]} 19. O-O-O {[%emt 0:10:33]} Nxe4 {[%emt 0:05:15]} 20. Nxe4 {[%emt 0:02:14]} Qxe4 {[%emt 0:00:02]} 21. f6 {[%emt 0:01:59]} Qf4+ {[%emt 0:03:56]} 22. Qd2 {[%emt 0:00:21]} Qxf6 {[%emt 0:00:22]} 23. Qxd6 {[%emt 0:00:25]} Be2 {[%emt 0:00:36]} 24. Qxf6 {[%emt 0:02:56]} gxf6 {[%emt 0:00:02]} 25. Rd6 {[%emt 0:00:11]} Rxa2 {[%emt 0:00:30]} 26. Kc2 {[%emt 0:01:02]} Rb8 {[%emt 0:00:34]} 27. Rb1 {[%emt 0:01:03]} e4 {[%emt 0:00:17]} 28. Ne1 {[%emt 0:00:56]} c5 {[%emt 0:00:59]} 29. Rxf6 {[%emt 0:01:17]} c4 {[%emt 0:00:33]} 30. Rf2 {[%emt 0:03:15]} Bd3+ {[%emt 0:00:29]} 31. Nxd3 {[%emt 0:00:13]} cxd3+ {[%emt 0:00:07]} 32. Kc3 {[%emt 0:00:40]} e3 {[%emt 0:00:52]} 33. Rf3 {[%emt 0:00:17]} Rbxb2 {[%emt 0:00:30]} 34. Rxb2 {[%emt 0:00:55]} Rxb2 {[%emt 0:00:01]} 35. Kxd3 {[%emt 0:00:11]} Rxg2 {[%emt 0:00:59]} 36. Kxe3 {[%emt 0:00:16]} Rxh2 {[%emt 0:00:14]} 37. Rg3+ {[%emt 0:00:39]} Kf8 {[%emt 0:00:08]} 38. Kf4 {[%emt 0:00:17]} f6 {[%emt 0:00:26]} 39. Ra3 {[%emt 0:01:25]} Kf7 {[%emt 0:00:18]} 40. Kg3 {[%emt 0:00:32]} Rh5 {[%emt 0:00:21]} 41. Kf4 {[%emt 0:00:40]} Kg6 {[%emt 0:00:27]} 42. Rg3+ {[%emt 0:00:47]} Rg5 {[%emt 0:00:15]} 43. Rh3 {[%emt 0:00:57]} h5 {[%emt 0:00:34]} 44. Rh2 {[%emt 0:01:01]} Rg4+ {[%emt 0:00:23]} 45. Kf3 {[%emt 0:00:23]} Kg5 {[%emt 0:00:52]} 46. Ra2 {[%emt 0:01:20]} h4 {[%emt 0:00:59]} 47. Ra5+ {[%emt 0:00:41]} f5 {[%emt 0:01:50]} 48. Ra8 {[%emt 0:00:42]} Rg3+ {[%emt 0:00:00]} 49. Kf2 {[%emt 0:00:26]} Rb3 {[%emt 0:00:00]} 50. Ra4 {[%emt 0:02:10]} h3 {[%emt 0:00:14]} 51. Ra8 {[%emt 0:01:20]} Kg4 {[%emt 0:00:34]} 52. Rg8+ {[%emt 0:00:21]} Kf4 {[%emt 0:00:09]} 53. Rh8 {[%emt 0:00:32]} Rb2+ {[%emt 0:00:14]} 54. Kg1 {[%emt 0:00:46]} Kg3 {[%emt 0:00:41]} 55. Rg8+ {[%emt 0:00:12]} Kf3 {[%emt 0:00:06]} 56. Rh8 {[%emt 0:00:38]} Rb1+ {[%emt 0:01:51]} 57. Kh2 {[%emt 0:00:11]} f4 {[%emt 0:00:27]} 58. Rxh3+ {[%emt 0:01:01]} Kf2 {[%emt 0:00:39]} 59. Ra3 {[%emt 0:00:20]} Rb2 {[%emt 0:00:18]} 60. Kh3 {[%emt 0:00:41]} Rb4 {[%emt 0:00:45]} 61. Ra2+ {[%emt 0:00:26]} Ke3 {[%emt 0:00:18]} 62. Ra3+ {[%emt 0:00:28]} Ke4 {[%emt 0:00:16]} 63. Kg2 {[%emt 0:00:35]} Rb2+ {[%emt 0:00:21]} 64. Kf1 {[%emt 0:00:08]} Kf5 {[%emt 0:00:30]} 65. Ra5+ {[%emt 0:00:38]} Kg4 {[%emt 0:00:09]} 66. Ra3 {[%emt 0:00:22]} Rd2 {[%emt 0:00:52]} 67. Rb3 {[%emt 0:00:35]} Rh2 {[%emt 0:00:52]} 68. Ra3 {[%emt 0:00:46]} Rh1+ {[%emt 0:00:34]} 69. Kf2 {[%emt 0:00:23]} Rd1 {[%emt 0:00:11]} 70. Rb3 {[%emt 0:00:18]} f3 {[%emt 0:00:36]} 71. Rb8 {[%emt 0:00:21]} Rd2+ {[%emt 0:00:14]} 72. Kf1 {[%emt 0:00:16]} Rd4 {[%emt 0:00:45]} 73. Rg8+ {[%emt 0:00:52]} Kf4 {[%emt 0:00:02]} 74. Rf8+ {[%emt 0:00:32]} Ke3 {[%emt 0:00:01]} 75. Re8+ {[%emt 0:00:12]} Re4 {[%emt 0:00:36]} 76. Rxe4+ {[%emt 0:00:16]} Kxe4 {[%emt 0:00:02]} 77. Kf2 {[%emt 0:00:12]} Kf4 {[%emt 0:00:01]} 78. Kf1 {[%emt 0:00:10]} Kg3 {[%emt 0:00:04]} 79. Kg1 {[%emt 0:00:06]} f2+ {[%emt 0:00:07]} 80. Kf1 {[%emt 0:00:08]} Kf3 {[%emt 0:00:02]} 1/2-1/2